bitfinex-derivatives/quotes_SOLF0:USTF0_20241002
["timestamp","ask_amount","ask_price","bid_price","bid_amount"]
[1727913007972,0.5061,140.36,140.34,14.5032]
[1727913009084,3.5633,140.34,140.33,0.12502]
[1727913009268,10.94,140.34,140.26,2.7702]
[1727913009471,3.5646,140.29,140.26,6.3354]
[1727913009673,3.5646,140.29,140.26,2.7702]
[1727913010283,3.5648,140.28,140.26,2.7702]
[1727913011276,3.5646,140.29,140.26,2.7702]
[1727913011679,10.94,140.3,140.25,21.6464]
[1727913011874,3.5648,140.28,140.25,21.6464]
[1727913012978,3.5645,140.3,140.26,14.5051]
[1727913013284,10.94,140.31,140.26,14.5051]
[1727913014078,3.5643,140.3,140.26,14.5051]
[1727913015779,10.94,140.31,140.26,10.94]
[1727913016086,10.94,140.31,140.27,4.69082]
[1727913016683,14.5041,140.31,140.27,4.69082]
[1727913016884,10.94,140.31,140.27,4.69082]
[1727913017982,5.96,140.33,140.27,1.12602]
[1727913018186,10.94,140.31,140.27,1.12602]
[1727913018493,0.5061,140.36,140.3,10.94]
[1727913018682,0.5061,140.36,140.32,10.94]
[1727913018879,0.5061,140.36,140.34,10.94]
[1727913019488,0.5061,140.36,140.31,17.11]
[1727913019877,0.5061,140.36,140.35,3.563]
[1727913020387,0.5061,140.36,140.34,3.5631]
[1727913020982,0.5061,140.36,140.34,3.5633]
[1727913021785,0.5061,140.36,140.33,9.5234]
[1727913022286,0.5061,140.36,140.29,17.11]
[1727913022596,17.11,140.36,140.29,5.96]
[1727913022791,3.5633,140.34,140.3,3.5641]
[1727913023993,17.11,140.36,140.29,5.96]
[1727913024289,17.11,140.34,140.28,10.0728]
[1727913024793,3.5641,140.31,140.28,2.7356]
[1727913024994,17.11,140.32,140.27,1.12602]
[1727913026194,3.5645,140.3,140.27,1.12602]
[1727913029097,17.11,140.32,140.27,1.12602]
[1727913029792,3.5645,140.3,140.27,1.12602]
[1727913030588,17.11,140.32,140.27,1.12602]
[1727913030794,3.5648,140.28,140.27,1.12602]
[1727913043614,20.6748,140.28,140.27,1.12602]
[1727913047618,14.5248,140.28,140.27,1.12602]
[1727913050815,15.0309,140.28,140.27,1.12602]
[1727913054320,15.0309,140.28,140.25,1.001]
[1727913054321,11.4661,140.28,140.25,1.001]
[1727913054630,14.5253,140.26,140.25,1.001]
[1727913057827,14.5259,140.24,140.22,1.001]
[1727913058525,3.5654,140.26,140.22,4.5673]
[1727913058726,10.96,140.27,140.22,11.961]
[1727913059227,10.96,140.27,140.23,3.5659]
[1727913059228,14.5252,140.27,140.23,3.5659]
[1727913060016,3.5653,140.26,140.22,15.5271]
[1727913060321,3.5653,140.26,140.22,11.961]
[1727913060922,4.071,140.28,140.25,10.96]
[1727913061124,4.071,140.28,140.27,10.96]
[1727913061125,0.5061,140.28,140.27,10.96]
[1727913061330,0.5061,140.28,140.26,17.3]
[1727913061522,0.5061,140.28,140.26,20.8651]
[1727913061927,0.5061,140.28,140.26,17.3]
[1727913062535,0.5061,140.28,140.26,20.8653]
[1727913063530,0.5061,140.28,140.26,6.34]
[1727913065424,0.5061,140.28,140.25,4.1982]
[1727913065425,0.5061,140.28,140.25,1.3888]
[1727913065821,3.5652,140.27,140.25,1.3888]
[1727913066025,17.1,140.32,140.25,1.3888]
[1727913066224,3.5641,140.31,140.27,3.5649]
[1727913066430,6.46502,140.33,140.25,18.4888]
[1727913066638,6.46502,140.33,140.26,6.34]
[1727913066935,0.12502,140.33,140.26,6.34]
[1727913067326,17.1,140.32,140.26,6.34]
[1727913067529,3.5643,140.3,140.26,3.5652]
[1727913068032,3.5641,140.31,140.26,3.5652]
[1727913068629,3.5645,140.3,140.25,4.9543]
[1727913068820,17.1,140.32,140.25,4.9543]
[1727913069331,17.1,140.32,140.25,1.3888]
[1727913069531,17.1,140.3,140.25,1.3888]
[1727913071039,3.5646,140.29,140.25,1.3888]
[1727913072342,3.5646,140.29,140.25,4.9543]
[1727913073945,17.1,140.3,140.25,1.3888]
[1727913074446,3.5649,140.28,140.25,1.3888]
[1727913075342,17.1,140.28,140.22,7.341]
[1727913075735,3.5653,140.26,140.22,10.9071]
[1727913076347,3.5653,140.26,140.23,3.566]
[1727913077148,17.1,140.3,140.22,24.441]
[1727913077354,3.5648,140.28,140.25,3.5655]
[1727913077532,3.5648,140.28,140.22,24.441]
[1727913078042,3.5648,140.28,140.24,3.5656]
[1727913078237,3.5647,140.29,140.22,24.441]
[1727913078433,17.1,140.3,140.22,24.441]
[1727913079050,3.5648,140.28,140.24,3.5656]
[1727913080154,3.5656,140.25,140.22,1.001]
[1727913080856,6.34,140.31,140.22,1.001]
[1727913081060,17.1,140.28,140.22,1.001]
[1727913081556,3.5659,140.24,140.22,1.001]
[1727913081752,17.1,140.28,140.22,1.001]
[1727913082261,3.5657,140.25,140.22,1.001]
[1727913082557,17.1,140.28,140.22,1.001]
[1727913082855,17.1,140.26,140.22,1.001]
[1727913083955,3.5656,140.25,140.22,1.001]
[1727913084156,17.1,140.26,140.22,1.001]
[1727913084558,3.5657,140.25,140.22,1.001]
[1727913084755,17.1,140.26,140.22,1.001]
[1727913086459,3.566,140.24,140.22,1.001]
[1727913087455,17.1,140.26,140.22,1.001]
[1727913087661,3.5661,140.23,140.22,1.001]
[1727913088058,17.1,140.26,140.22,1.001]
[1727913088251,23.44,140.27,140.22,1.001]
[1727913089264,3.5659,140.24,140.22,1.001]
[1727913089560,23.44,140.27,140.22,1.001]
[1727913092053,3.5656,140.25,140.22,1.001]
[1727913092258,17.1,140.27,140.22,1.001]
[1727913092664,3.5656,140.25,140.22,1.001]
[1727913093565,3.5655,140.26,140.22,4.5673]
[1727913094174,4.0716,140.26,140.22,4.5673]
[1727913094867,0.5061,140.26,140.22,4.5673]
[1727913095164,0.5061,140.26,140.22,1.001]
[1727913095364,0.5061,140.26,140.24,3.5657]
[1727913095567,0.5061,140.26,140.22,18.101]
[1727913095761,0.5061,140.26,140.23,2.6492]
[1727913096066,0.5061,140.26,140.25,3.5655]
[1727913097173,0.5061,140.26,140.24,3.5657]
[1727913097769,0.5061,140.26,140.23,6.2151]
[1727913098170,0.5061,140.26,140.23,2.6492]
[1727913098874,0.5061,140.26,140.24,3.5656]
[1727913099471,0.5061,140.26,140.25,3.5655]
[1727913099777,0.5061,140.26,140.23,2.6492]
[1727913100185,0.5061,140.26,140.23,6.2151]
[1727913100478,4.0714,140.26,140.23,6.2151]
[1727913100779,4.0714,140.26,140.23,2.6492]
[1727913100970,0.5061,140.26,140.23,2.6492]
[1727913101678,0.5061,140.26,140.23,19.7492]
[1727913101883,3.5644,140.3,140.24,17.1]
[1727913103480,3.5644,140.3,140.26,3.5651]
[1727913105175,0.12502,140.33,140.29,3.5644]
[1727913105366,0.12502,140.33,140.26,23.36]
[1727913105770,3.5639,140.32,140.28,3.5647]
[1727913107676,3.5641,140.31,140.28,3.5647]
[1727913109177,0.12502,140.33,140.26,23.36]
[1727913109378,3.5638,140.32,140.29,3.5644]
[1727913110182,0.12502,140.33,140.3,3.5641]
[1727913111084,3.68862,140.33,140.3,3.5641]
[1727913111278,3.68862,140.33,140.29,3.5645]
[1727913111883,3.5639,140.32,140.28,3.5647]
[1727913112286,3.5639,140.32,140.26,23.36]
[1727913113081,3.5638,140.32,140.26,23.36]
[1727913113887,3.5638,140.32,140.29,3.5644]
[1727913115586,0.12502,140.33,140.31,3.564]
[1727913116379,0.12502,140.33,140.32,10.96]
[1727913117593,0.12502,140.33,140.3,23.37]
[1727913118190,0.12502,140.33,140.32,3.5638]
[1727913120486,0.12502,140.33,140.31,6.3266]
[1727913120680,0.12502,140.33,140.31,1.4264]
[1727913121291,0.12502,140.33,140.27,1.4001]
[1727913121490,3.5642,140.31,140.29,6.06]
[1727913122583,3.5643,140.3,140.27,9.6249]
[1727913122782,17.11,140.32,140.27,6.06]
[1727913122988,17.11,140.32,140.26,1.394]
[1727913122989,3.5648,140.28,140.26,1.394]
[1727913123185,17.11,140.32,140.26,1.394]
[1727913123799,3.5646,140.29,140.26,1.394]
[1727913126393,3.5645,140.29,140.26,1.394]
[1727913126699,17.11,140.31,140.23,18.4918]
[1727913127001,3.5653,140.26,140.22,10.6272]
[1727913127196,3.5653,140.26,140.22,4.5672]
[1727913127407,3.5653,140.26,140.22,10.6272]
[1727913130898,3.5656,140.25,140.22,10.6272]
[1727913131198,17.11,140.29,140.23,3.566]
[1727913131896,3.565,140.28,140.23,3.566]
[1727913132102,17.11,140.29,140.23,3.566]
[1727913132601,3.5656,140.25,140.22,10.6273]
[1727913132802,3.5656,140.25,140.22,7.061]
[1727913133203,3.5656,140.25,140.22,1.001]
[1727913134010,3.5656,140.25,140.22,4.5673]
[1727913134701,3.5654,140.26,140.23,3.5659]
[1727913137407,17.11,140.29,140.22,1.001]
[1727913137612,3.5656,140.25,140.22,4.5673]
[1727913137799,17.11,140.29,140.22,1.001]
[1727913138104,3.5655,140.26,140.23,3.566]
[1727913138312,20.6021127,140.29,140.22,1.001]
[1727913139011,17.11,140.29,140.22,1.001]
[1727913139509,3.5654,140.26,140.23,14.5159]
[1727913140506,3.5651,140.27,140.23,14.5159]
[1727913142524,10.95,140.26,140.22,1.001]
[1727913143010,3.5656,140.25,140.22,1.001]
[1727913143411,10.95,140.25,140.22,1.001]
[1727913143611,3.5658,140.24,140.22,1.001]
[1727913144017,10.95,140.25,140.22,1.001]
[1727913144212,3.5658,140.24,140.22,1.001]
[1727913144410,10.95,140.26,140.22,1.001]
[1727913144805,3.5657,140.25,140.22,1.001]
[1727913146009,3.5654,140.26,140.23,14.516]
[1727913146204,1.3736,140.27,140.23,14.516]
[1727913146408,1.3736,140.27,140.23,10.95]
[1727913146712,10.95,140.26,140.22,1.001]
[1727913147110,3.5657,140.25,140.22,1.001]
[1727913147506,10.95,140.26,140.22,1.001]
[1727913148122,1.3736,140.27,140.23,10.95]
[1727913148928,1.3736,140.27,140.24,3.5658]
[1727913149420,1.3736,140.27,140.24,10.95]
[1727913149629,9.6249,140.28,140.24,14.5157]
[1727913149921,3.5647,140.29,140.25,10.95]
[1727913150112,3.5647,140.29,140.25,14.5154]
[1727913150313,12.3845,140.3,140.25,14.5154]
[1727913150809,3.5649,140.28,140.24,14.5157]
[1727913151814,10.95,140.29,140.23,3.5659]
[1727913152115,10.95,140.28,140.23,14.5159]
[1727913152519,3.5653,140.26,140.23,3.5659]
[1727913152709,1.4345,140.3,140.26,3.5652]
[1727913152910,12.3845,140.3,140.24,10.95]
[1727913153124,10.95,140.29,140.23,10.95]
[1727913154214,3.5649,140.28,140.23,10.95]
[1727913154418,3.5649,140.28,140.24,3.5656]
[1727913155322,3.5651,140.27,140.24,3.5656]
[1727913155816,10.95,140.29,140.23,10.95]
[1727913156021,3.5649,140.28,140.25,3.5654]
[1727913156622,1.4344,140.32,140.25,10.95]
[1727913156826,1.4344,140.32,140.27,3.5649]
[1727913156827,3.5644,140.3,140.27,3.5649]
[1727913157120,12.3844,140.32,140.27,14.5149]
[1727913157624,3.5642,140.31,140.27,14.5149]
[1727913160321,14.5138,140.32,140.27,10.95]
[1727913160522,14.5138,140.32,140.25,5.9]
[1727913160725,10.95,140.32,140.28,10.95]
[1727913161131,14.5139,140.32,140.28,14.5146]
[1727913162436,10.95,140.32,140.25,5.9]
[1727913162730,3.5642,140.31,140.28,10.95]
[1727913163431,10.95,140.32,140.28,10.95]
[1727913163725,3.5641,140.31,140.28,10.95]
[1727913165431,3.5638,140.32,140.28,14.5146]
[1727913167532,3.5641,140.31,140.27,14.5149]
[1727913168236,3.5641,140.31,140.28,3.5648]
[1727913169843,3.5638,140.32,140.29,14.5144]
[1727913170021,3.5638,140.32,140.29,10.95]
[1727913170229,0.12502,140.33,140.29,10.95]
[1727913170731,3.5638,140.32,140.29,10.95]
[1727913172625,3.5641,140.31,140.27,10.95]
[1727913172834,10.95,140.32,140.27,3.5649]
[1727913173430,3.5641,140.31,140.27,14.5149]
[1727913175428,3.5643,140.3,140.27,14.5149]
[1727913177240,3.5643,140.3,140.28,3.5648]
[1727913178035,3.5641,140.31,140.28,3.5648]
[1727913180637,3.5644,140.3,140.27,3.5648]
[1727913180836,3.5644,140.3,140.27,14.5148]
[1727913183138,10.95,140.29,140.25,3.5654]
[1727913183341,10.95,140.28,140.24,5.74]
[1727913183538,3.5655,140.26,140.24,5.74]
[1727913184045,10.95,140.28,140.24,5.74]
[1727913184344,3.5652,140.27,140.24,5.74]
[1727913184541,3.5652,140.27,140.24,9.3056]
[1727913187338,3.5652,140.27,140.24,5.74]
[1727913187642,3.5648,140.28,140.25,10.95]
[1727913188232,3.5648,140.28,140.25,14.5153]
[1727913188767,0.5061,140.32,140.27,10.95]
[1727913189046,0.5061,140.32,140.31,10.95]
[1727913189249,0.5061,140.32,140.31,14.514]
[1727913194343,0.12502,140.33,140.31,14.514]
[1727913194344,0.12502,140.33,140.31,10.95]
[1727913194653,0.12502,140.39,140.31,10.95]
[1727913194846,0.12502,140.39,140.36,10.95]
[1727913195642,3.68722,140.39,140.35,14.5129]
[1727913196045,0.12502,140.39,140.36,10.95]
[1727913196857,0.12502,140.39,140.34,6.2]
[1727913196858,0.12502,140.39,140.29,6.27623041]
[1727913197061,0.12502,140.39,140.34,10.95]
[1727913197449,3.5625,140.38,140.34,14.5131]
[1727913198556,3.5625,140.38,140.35,10.95]
[1727913201052,3.5625,140.38,140.29,6.27623041]
[1727913201053,3.5631,140.35,140.32,10.95]
[1727913202461,3.5631,140.35,140.29,8.9726]
[1727913202758,10.95,140.37,140.31,10.95]
[1727913202947,3.5629,140.36,140.32,3.5636]
[1727913212960,3.5629,140.36,140.33,3.5635]
[1727913213265,10.95,140.37,140.33,3.5635]
[1727913214369,3.5628,140.36,140.33,3.5635]
[1727913217377,3.5626,140.37,140.34,3.5632]
[1727913217961,1.3768,140.38,140.32,10.95]
[1727913218166,17.27502,140.39,140.34,10.95]
[1727913219485,14.5124,140.38,140.34,3.5631]
[1727913220568,10.95,140.35,140.29,12.61625918]
[1727913220770,10.95,140.33,140.29,10.95]
[1727913220971,3.5638,140.32,140.29,10.95]
[1727913221279,3.5638,140.32,140.29,14.5144]
[1727913221463,3.564,140.31,140.27,20.75323741]
[1727913221668,6.04,140.35,140.27,9.72992]
[1727913221864,10.95,140.32,140.27,9.72992]
[1727913222062,3.5644,140.3,140.27,3.68992]
[1727913222268,3.5644,140.3,140.27,14.63992]
[1727913222466,3.5644,140.3,140.27,0.12502]
[1727913222666,3.5646,140.29,140.27,0.12502]
[1727913223068,10.95,140.31,140.27,0.12502]
[1727913223271,3.5643,140.3,140.27,0.12502]
[1727913223472,10.95,140.31,140.27,0.12502]
[1727913224270,3.5647,140.29,140.27,0.12502]
[1727913226381,3.5642,140.31,140.28,3.5646]
[1727913226882,10.95,140.32,140.28,3.5646]
[1727913227072,14.5139,140.32,140.28,3.5646]
[1727913227382,13.6921,140.34,140.3,10.95]
[1727913227674,3.5637,140.33,140.3,10.95]
[1727913230879,10.17612162,140.36,140.28,6.04]
[1727913230880,10.95,140.35,140.31,10.95]
[1727913231084,6.5461,140.36,140.32,10.95]
[1727913231085,0.5061,140.36,140.32,10.95]
[1727913231474,4.0689,140.36,140.32,10.95]
[1727913232376,4.0689,140.36,140.32,14.5136]
[1727913232582,3.5632,140.35,140.31,10.95]
[1727913233081,3.5632,140.35,140.31,14.514]
[1727913233283,3.5633,140.34,140.31,14.514]
[1727913233484,3.5633,140.34,140.31,3.564]
[1727913235279,4.0689,140.36,140.32,10.95]
[1727913235974,4.0689,140.36,140.32,14.5136]
[1727913237084,3.5633,140.34,140.31,14.5139]
[1727913237479,3.5633,140.34,140.28,10.0748]
[1727913237783,3.5633,140.34,140.31,10.95]
[1727913238783,11.4561,140.36,140.32,10.95]
[1727913238986,3.5631,140.35,140.32,10.95]
[1727913240682,0.5061,140.36,140.32,10.95]
[1727913240884,3.5633,140.34,140.32,10.95]
[1727913241981,3.5633,140.34,140.3,10.95]
[1727913242192,3.5637,140.33,140.29,3.5644]
[1727913242491,10.95,140.34,140.29,3.5644]
[1727913242697,3.5637,140.33,140.29,3.5644]
[1727913242891,3.5637,140.33,140.3,14.5143]
[1727913244603,3.5637,140.33,140.31,3.564]
[1727913246086,10.95,140.32,140.27,0.12502]
[1727913246392,3.5643,140.3,140.27,3.68992]
[1727913246985,3.5648,140.28,140.27,0.12502]
[1727913249294,3.5644,140.3,140.27,11.07502]
[1727913249489,5.92,140.33,140.29,10.95]
[1727913249695,3.5639,140.32,140.29,14.5144]
[1727913250080,14.60108516,140.35,140.29,10.95]
[1727913250286,3.5636,140.33,140.3,3.5643]
[1727913251693,3.5636,140.33,140.29,3.5644]
[1727913255103,6.1617,140.37,140.33,3.5633]
[1727913255298,6.04502,140.39,140.31,17.12]
[1727913255793,6.04502,140.39,140.34,3.5632]
[1727913255995,0.12502,140.39,140.33,17.12]
[1727913257100,3.5625,140.37,140.34,3.5632]
[1727913257303,0.12502,140.39,140.31,17.12]
[1727913257801,3.5627,140.37,140.33,3.5634]
[1727913257988,0.12502,140.39,140.33,3.5634]
[1727913258394,3.5627,140.37,140.33,3.5634]
[1727913258806,0.12502,140.39,140.33,3.5634]
[1727913259504,3.5627,140.37,140.33,3.5634]
[1727913261102,0.12502,140.39,140.31,17.12]
[1727913261397,3.5624,140.38,140.34,3.5631]
[1727913261796,3.5627,140.37,140.33,3.5635]
[1727913262705,3.5628,140.36,140.33,3.5635]
[1727913263008,0.12502,140.39,140.33,3.5635]
[1727913263405,3.5627,140.37,140.33,3.5635]
[1727913266000,3.5632,140.35,140.31,20.6839]
[1727913266505,3.5632,140.35,140.31,17.12]
[1727913266708,3.5632,140.35,140.32,3.5638]
[1727913267405,7.42072,140.39,140.31,17.12]
[1727913267600,3.5633,140.34,140.31,20.684]
[1727913267791,3.5366609,140.37,140.31,17.12]
[1727913267999,7.42072,140.39,140.31,17.12]
[1727913269508,3.5629,140.36,140.32,3.5635]
[1727913271504,10.95,140.37,140.32,14.5135]
[1727913271709,3.5631,140.35,140.32,14.5135]
[1727913272409,10.95,140.37,140.32,3.5635]
[1727913272612,14.51257115,140.37,140.32,14.5135]
[1727913273312,3.5632,140.35,140.32,14.5135]
[1727913275815,10.95,140.37,140.33,10.95]
[1727913276002,3.5628,140.36,140.34,3.5632]
[1727913276810,3.5628,140.36,140.33,10.95]
[1727913277012,3.5628,140.36,140.34,3.5633]
[1727913277505,3.5628,140.36,140.33,3.5635]
[1727913277714,3.5628,140.36,140.33,14.5135]
[1727913278612,10.95,140.37,140.33,14.5135]
[1727913278819,14.5127,140.37,140.33,14.5135]
[1727913279504,3.5628,140.36,140.33,14.5135]
[1727913280907,10.95,140.36,140.31,10.95]
[1727913281107,3.5632,140.35,140.32,3.5637]
[1727913282619,4.0685,140.38,140.35,3.5629]
[1727913282806,11.4561,140.38,140.32,10.95]
[1727913284213,3.5628,140.36,140.33,3.5634]
[1727913286115,17.2161,140.38,140.32,10.95]
[1727913286116,6.2661,140.38,140.32,10.95]
[1727913286303,14.5126,140.37,140.34,3.5631]
[1727913287909,3.5628,140.36,140.33,3.5634]
[1727913288112,10.95,140.37,140.32,10.95]
[1727913288508,14.5127,140.37,140.33,3.5634]
[1727913290217,14.5127,140.37,140.34,3.5632]
[1727913297126,10.95,140.37,140.31,5.76]
[1727913297333,14.5128,140.36,140.32,3.5636]
[1727913297531,10.95,140.34,140.3,4.0872]
[1727913297729,3.5636,140.33,140.3,3.5642]
[1727913298122,10.95,140.34,140.28,16.69]
[1727913298630,14.5135,140.34,140.3,3.5641]
[1727913299033,10.95,140.34,140.3,3.5641]
[1727913300428,3.5635,140.33,140.3,3.5641]
[1727913302530,3.5638,140.32,140.3,3.5641]
[1727913302733,10.95,140.34,140.3,3.5641]
[1727913303629,3.5637,140.33,140.3,3.5641]
[1727913306728,6.29222704,140.37,140.29,10.95]
[1727913306927,10.95,140.35,140.29,10.95]
[1727913307530,3.5638,140.32,140.29,10.95]
[1727913308431,3.5638,140.32,140.28,3.5646]
[1727913308432,3.5642,140.31,140.28,3.5646]
[1727913309429,14.5142,140.31,140.28,3.5646]
[1727913311336,10.95,140.31,140.27,0.12502]
[1727913311528,10.95,140.28,140.27,0.12502]
[1727913314535,14.5147,140.29,140.27,0.12502]
[1727913314836,10.95,140.29,140.27,0.12502]
[1727913315535,10.95,140.28,140.27,0.12502]
[1727913317631,14.5148,140.28,140.27,0.12502]
[1727913320443,8.3024,140.32,140.27,11.07502]
[1727913320834,3.5642,140.31,140.27,14.63992]
[1727913321129,10.95,140.3,140.27,0.12502]
[1727913322332,0.5061,140.33,140.29,10.95]
[1727913322535,0.5061,140.33,140.3,10.95]
[1727913325239,0.5061,140.33,140.31,3.564]
[1727913327444,36.6391,140.48,140.3,10.95]
[1727913327740,10.95,140.38,140.35,3.5628]
[1727913327943,10.95,140.38,140.33,10.95]
[1727913327944,0.12502,140.39,140.34,10.95]
[1727913328142,0.12502,140.39,140.38,3.5622]
[1727913328344,0.12502,140.39,140.34,10.95]
[1727913328549,0.12502,140.39,140.33,5.56]
[1727913328848,10.95,140.38,140.35,3.5629]
[1727913329646,14.5122,140.38,140.35,3.5629]
[1727913330652,10.95,140.38,140.35,3.5629]
[1727913332546,14.5123,140.38,140.35,3.5629]
[1727913333951,0.12502,140.39,140.38,3.5622]
[1727913341952,0.12502,140.45,140.38,10.95]
[1727913342158,0.12502,140.45,140.44,3.5607]
[1727913342352,11.07502,140.45,140.4,10.95]
[1727913342558,11.07502,140.45,140.42,3.5611]
[1727913342753,10.95,140.44,140.37,2.6068]
[1727913342942,10.95,140.44,140.38,16.85]
[1727913344357,10.95,140.44,140.41,3.5614]
[1727913345962,10.95,140.42,140.39,3.562]
[1727913347251,10.95,140.42,140.37,8.5068]
[1727913347563,10.95,140.42,140.4,3.5617]
[1727913348154,6.02502,140.45,140.37,19.4568]
[1727913348353,10.95,140.44,140.39,10.95]
[1727913349452,10.95,140.44,140.42,3.5612]
[1727913350059,10.95,140.44,140.41,3.5614]
[1727913350548,10.95,140.44,140.39,10.95]
[1727913350752,10.95,140.44,140.41,3.5613]
[1727913351863,10.95,140.44,140.42,3.5612]
[1727913352771,16.97502,140.45,140.43,3.561]
[1727913352962,11.07502,140.45,140.43,3.561]
[1727913353154,11.07502,140.45,140.4,10.95]
[1727913353360,11.07502,140.45,140.44,3.5607]
[1727913354063,0.12502,140.45,140.44,3.5607]
[1727913354265,11.07502,140.45,140.4,3.5617]
[1727913354467,10.95,140.43,140.4,3.5617]
[1727913355264,10.95,140.43,140.41,3.5614]
[1727913357065,10.95,140.43,140.38,10.95]
[1727913357371,10.95,140.43,140.4,3.5616]
[1727913357563,14.511,140.43,140.4,3.5616]
[1727913357757,14.511,140.43,140.38,10.95]
[1727913357963,0.5061,140.42,140.38,10.95]
[1727913358870,15.0176,140.42,140.37,8.5068]
[1727913359066,15.0176,140.42,140.37,19.4568]
[1727913359265,15.0176,140.42,140.39,3.5617]
[1727913359266,11.4561,140.42,140.39,3.5617]
[1727913359462,11.4561,140.42,140.37,19.4568]
[1727913360770,11.4561,140.42,140.4,3.5617]
[1727913360967,15.0175,140.42,140.37,16.85]
[1727913361273,11.4561,140.42,140.37,5.9]
[1727913361672,3.5615,140.41,140.38,3.562]
[1727913361896,11.4561,140.42,140.38,3.562]
[1727913362073,11.4561,140.42,140.37,5.9]
[1727913362373,15.0174,140.42,140.39,3.5619]
[1727913364569,14.5118,140.4,140.37,3.5623]
[1727913365876,10.95,140.4,140.38,3.5622]
[1727913366471,14.5117,140.4,140.38,3.5622]
[1727913366672,10.95,140.4,140.38,3.5622]
[1727913367474,10.95,140.4,140.37,3.5624]
[1727913368068,14.5119,140.4,140.37,3.5624]
[1727913369174,14.5119,140.4,140.35,10.95]
[1727913369677,10.95,140.4,140.35,10.95]
[1727913369879,3.5616,140.41,140.38,3.5621]
[1727913370172,10.95,140.41,140.35,10.95]
[1727913370573,10.95,140.41,140.39,3.5619]
[1727913372272,10.95,140.41,140.36,3.5626]
[1727913372472,10.95,140.41,140.35,10.95]
[1727913373080,10.95,140.41,140.39,3.5619]
[1727913375473,14.5117,140.41,140.34,5.9]
[1727913375681,10.95,140.41,140.35,10.95]
[1727913376080,10.95,140.41,140.39,3.562]
[1727913376273,10.95,140.41,140.35,10.95]
[1727913376472,10.95,140.41,140.36,10.95]
[1727913376779,10.95,140.43,140.42,3.5612]
[1727913377575,10.95,140.43,140.41,3.5614]
[1727913378373,0.12502,140.45,140.44,3.5607]
[1727913392501,0.12502,140.45,140.43,3.5608]
[1727913394809,0.12502,140.45,140.44,3.5607]
[1727913397501,0.12502,140.45,140.43,3.5609]
[1727913400816,0.12502,140.45,140.42,5.72]
[1727913401006,0.12502,140.45,140.44,3.5607]
[1727913404911,0.12502,140.45,140.44,14.5107]
[1727913405717,0.63112,140.45,140.44,14.5107]
[1727913407914,0.63112,140.45,140.44,20.0107]
[1727913408317,0.63112,140.45,140.44,14.5107]
[1727913408511,0.63112,140.45,140.44,20.0107]
[1727913412721,1.0,140.48,140.47,3.56]
[1727913412919,1.0,140.48,140.47,14.51]
[1727913422231,1.0,140.48,140.47,3.56]
[1727913422532,11.95,140.48,140.43,16.45]